fUSD/lending_fUSD_20240521
["ID","MTS","AMOUNT","RATE_DAILY","PERIOD"]
[327670785,1716301839204,-2048.5735093,0.00034999,14]
[327670793,1716301839335,-0.17111526,0.00034999,14]
[327670794,1716301839348,-256.32955563,0.00034999,14]
[327670795,1716301839360,-3519.55,0.00034999,14]
[327670796,1716301839372,-376.94077743,0.00034999,14]
[327670797,1716301839384,-2000.0,0.00034999,14]
[327670798,1716301839396,-4594.75488007,0.00034999,14]
[327670799,1716301839406,-2355.96378953,0.00035,4]
[327670883,1716301841519,-1465.0,0.0003219,2]
[327670886,1716301841530,-320.1200002,0.00035,4]
[327670890,1716301841544,-380.36100389,0.00035,4]
[327670968,1716301844001,-6936.29845917,0.00035,4]
[327670970,1716301844011,-8735.89126676,0.0003505,2]
[327670972,1716301844021,-345.72692,0.0003505,2]
[327670975,1716301844031,-284.60564825,0.00035114,2]
[327670977,1716301844040,-160.9498606,0.00035121,7]
[327670979,1716301844050,-1000.0,0.00035166,30]
[327670981,1716301844066,-500.0,0.00035166,10]
[327670983,1716301844076,-1563.85586632,0.00035189,2]
[327670985,1716301844086,-5132.0,0.0003519,2]
[327670987,1716301844095,-1465.0,0.0003519,2]
[327670989,1716301844105,-191.22905209,0.00035267,2]
[327670991,1716301844115,-150.0,0.00035305,2]
[327670993,1716301844125,-204.6,0.00035379,2]
[327670995,1716301844135,-489.54298967,0.00035387,2]
[327670997,1716301844146,-204.6,0.00035389,2]
[327670999,1716301844156,-373975.77361631,0.00035397,5]
[327671002,1716301844166,-500.0,0.00035398,2]
[327671004,1716301844175,-1000.0,0.00035399,120]
[327671006,1716301844185,-44498.88661477,0.00035399,17]
[327671008,1716301844195,-4879.3374,0.00035399,2]
[327671010,1716301844205,-1000.0,0.00035399,2]
[327671012,1716301844214,-5343.22555034,0.00035399,2]
[327671014,1716301844226,-218896.05084966,0.00035399,2]
[327671016,1716301844237,-6981.1987,0.00035399,2]
[327671018,1716301844247,-5791.1358,0.00035399,2]
[327671019,1716301844256,-988.0,0.00035399,2]
[327671020,1716301844267,-155.0,0.000354,5]
[327671021,1716301844276,-5800.0,0.000354,2]
[327671022,1716301844288,-5800.0,0.000354,2]
[327671023,1716301844298,-1518.2303,0.000354,2]
[327671024,1716301844310,-151.65055707,0.000354,2]
[327671025,1716301844319,-160.0,0.000354,9]
[327671026,1716301844328,-1200.0,0.000354,12]
[327671027,1716301844336,-728.36907008,0.000354,25]
[327671028,1716301844346,-150.0,0.000354,8]
[327671029,1716301844355,-284.60564825,0.000354,2]
[327671030,1716301844364,-1089.88227692,0.000354,2]
[327671031,1716301844374,-7328.06868832,0.000354,2]
[327671032,1716301844383,-150.68,0.00035488,2]
[327671033,1716301844392,-204.6,0.00035488,2]
[327671034,1716301844402,-204.6,0.00035489,2]
[327671035,1716301844411,-150.0,0.0003549,2]
[327671036,1716301844421,-150.68,0.0003549,2]
[327671037,1716301844430,-150.68,0.0003549,2]
[327671038,1716301844440,-150.68,0.0003549,2]
[327671039,1716301844449,-150.68,0.0003549,2]
[327671040,1716301844458,-150.68,0.0003549,2]
[327671041,1716301844468,-150.68,0.0003549,2]
[327671042,1716301844478,-150.68,0.0003549,2]
[327671043,1716301844488,-150.68,0.0003549,2]
[327671044,1716301844497,-204.6,0.0003549,2]
[327671045,1716301844507,-204.6,0.0003549,2]
[327671046,1716301844527,-204.6,0.0003549,2]
[327671047,1716301844537,-204.6,0.0003549,2]
[327671048,1716301844547,-204.6,0.0003549,2]
[327671049,1716301844559,-489.54298967,0.0003549,2]
[327671050,1716301844568,-489.54298967,0.0003549,2]
[327671051,1716301844577,-653.5213756,0.00035491,2]
[327671052,1716301844588,-626.74,0.00035493,10]
[327671053,1716301844599,-155.0,0.00035497,4]
[327671054,1716301844609,-266.24547519,0.00035497,4]
[327671055,1716301844620,-155.0,0.00035497,3]
[327671056,1716301844630,-782.7917937,0.00035497,2]
[327671057,1716301844640,-3880.70724069,0.00035497,2]
[327671058,1716301844651,-23820.90912655,0.00035497,4]
[327671060,1716301844661,-5900.0,0.00035497,15]
[327671062,1716301844671,-53488.09452014,0.00035497,4]
[327671064,1716301844681,-155.0,0.00035498,4]
[327671067,1716301844690,-283.98444425,0.00035498,4]
[327671070,1716301844700,-951.78327246,0.00035498,4]
[327671072,1716301844710,-155.35632703,0.00035498,4]
[327671074,1716301844720,-19606.22315878,0.00035498,4]
[327671076,1716301844730,-4212.63801329,0.00035498,4]
[327671078,1716301844741,-155.0,0.00035498,4]
[327671080,1716301844751,-3393.70751215,0.00035498,4]
[327671082,1716301844761,-208.27152668,0.00035498,4]
[327671083,1716301844771,-325.092023,0.00035498,4]
[327671084,1716301844780,-155.0,0.00035498,4]
[327671085,1716301844790,-289.07949143,0.00035498,4]
[327671086,1716301844800,-3279.84855016,0.00035498,4]
[327671087,1716301844811,-225.97112315,0.00035498,4]
[327671088,1716301844821,-1210.37915373,0.00035498,4]
[327671089,1716301844831,-323.68137164,0.00035498,4]
[327671090,1716301844841,-1249.35755271,0.00035498,4]
[327671091,1716301844851,-155.30465791,0.00035498,4]
[327671092,1716301844860,-305.0,0.00035498,4]
[327671093,1716301844872,-157.04666537,0.00035498,4]
[327671094,1716301844881,-360.51384595,0.00035498,4]
[327671095,1716301844892,-282.55141763,0.00035498,4]
[327671096,1716301844903,-643.21413352,0.00035498,4]
[327671097,1716301844912,-23106.27137631,0.00035498,4]
[327671098,1716301844923,-298.39421916,0.00035498,2]
[327671099,1716301844934,-333.50445826,0.00035498,4]
[327671100,1716301844945,-155.0,0.00035498,4]
[327671101,1716301844954,-155.0,0.00035498,4]
[327671102,1716301844965,-5122.36533025,0.00035498,4]
[327671103,1716301844975,-258.35664336,0.00035498,4]
[327671104,1716301844986,-440.35264975,0.00035498,4]
[327671105,1716301844996,-711.19450635,0.00035498,15]
[327671106,1716301845006,-685.99115203,0.00035498,4]
[327671107,1716301845017,-206.53874011,0.00035498,4]
[327671108,1716301845026,-2358.78776413,0.00035498,4]
[327671109,1716301845036,-165.95926671,0.00035498,4]
[327671110,1716301845045,-311.13542351,0.00035498,2]
[327671111,1716301845058,-255.20118883,0.00035498,4]
[327671112,1716301845068,-709.02988597,0.00035498,4]
[327671113,1716301845080,-969.72210365,0.00035498,4]
[327671114,1716301845090,-210.39960736,0.00035498,4]
[327671115,1716301845101,-299.89711403,0.00035498,4]
[327671116,1716301845112,-204.34387367,0.00035498,4]
[327671117,1716301845123,-158.39167548,0.00035498,4]
[327671118,1716301845133,-179.28826561,0.00035498,4]
[327671119,1716301845143,-206.3699626,0.00035498,4]
[327671120,1716301845153,-276.38529063,0.00035498,4]
[327671121,1716301845166,-194.90807186,0.00035498,4]
[327671122,1716301845176,-155.26323273,0.00035498,4]
[327671123,1716301845186,-238.16752768,0.00035498,2]
[327671124,1716301845196,-307.39404875,0.00035498,2]
[327671125,1716301845206,-236.0100917,0.00035498,2]
[327671126,1716301845216,-57075.3802676,0.00035498,2]
[327671127,1716301845229,-2000.0,0.00035499,2]
[327671128,1716301845254,-2000.0,0.00035499,2]
[327671129,1716301845276,-1058.1159863,0.00035499,30]
[327671130,1716301845299,-1058.1159863,0.00035499,30]
[327671131,1716301845325,-1000.0,0.00035499,2]
[327671132,1716301845350,-1000.0,0.00035499,2]
[327671133,1716301845371,-1000.0,0.00035499,2]
[327671134,1716301845395,-1000.0,0.00035499,2]
[327671135,1716301845420,-1000.0,0.00035499,2]
[327671136,1716301845442,-1000.0,0.00035499,2]
[327671137,1716301845452,-1000.0,0.00035499,2]
[327671138,1716301845461,-1021.62579578,0.00035499,2]
[327671139,1716301845471,-100005.43341353,0.00035499,2]
[327671140,1716301845482,-2000.0,0.00035499,2]
[327671141,1716301845492,-1500.0,0.00035499,14]
[327671142,1716301845502,-1500.0,0.00035499,14]
[327671143,1716301845512,-1500.0,0.00035499,14]
[327671144,1716301845523,-1500.0,0.00035499,14]
[327671145,1716301845533,-1500.0,0.00035499,14]
[327671146,1716301845542,-1500.0,0.00035499,14]
[327671147,1716301845556,-1500.0,0.00035499,14]
[327671148,1716301845566,-1500.0,0.00035499,14]
[327671149,1716301845576,-1500.0,0.00035499,14]
[327671150,1716301845586,-1500.0,0.00035499,14]
[327671151,1716301845597,-1500.0,0.00035499,14]
[327671152,1716301845607,-1500.0,0.00035499,14]
[327671153,1716301845617,-1500.0,0.00035499,14]
[327671154,1716301845627,-1500.0,0.00035499,14]
[327671155,1716301845637,-1500.0,0.00035499,14]
[327671156,1716301845647,-1500.0,0.00035499,14]
[327671157,1716301845657,-1500.0,0.00035499,14]
[327671158,1716301845677,-1500.0,0.00035499,14]
[327671159,1716301845690,-1500.0,0.00035499,14]
[327671160,1716301845701,-1500.0,0.00035499,14]
[327671161,1716301845712,-1500.0,0.00035499,14]
[327671162,1716301845724,-1500.0,0.00035499,14]
[327671163,1716301845735,-1500.0,0.00035499,14]
[327671164,1716301845746,-226.53502368,0.00035499,14]
[327671165,1716301845757,-557.05969218,0.000355,5]
[327671166,1716301845768,-769078.30022266,0.000355,5]
[327671167,1716301845908,-5454.49357492,0.000355,5]
[327671168,1716301845920,-8756.48446748,0.000355,5]
[327671169,1716301845933,-3037.76411662,0.000355,5]
[327671170,1716301845946,-202016.66917424,0.000355,5]
[327671171,1716301845959,-132964.35863295,0.000355,5]
[327671183,1716301847006,-250.0,0.00034365,115]
[327671184,1716301847017,-351.97,0.00034365,2]
[327671185,1716301847028,-201.76333912,0.00034999,4]
[327671186,1716301847043,-798.23666088,0.00034999,4]
[327671187,1716301847054,-475.01434833,0.00034999,4]
[327671188,1716301847071,-58197.5638837,0.00034999,4]
[327671189,1716301847083,-308.12039765,0.00034999,4]
[327671190,1716301847094,-275978.6643048,0.000355,5]
[327671192,1716301847369,-6169.89088364,0.00032711,2]
[327671193,1716301847380,-221254.03041941,0.000355,5]
[327671667,1716302023886,11142.17,0.00013,2]
[327671668,1716302023935,346285.3695388,0.00013,2]
[327671671,1716302210111,156.30343243,0.0003,120]
[327671673,1716302331164,155.6,0.00013973,2]
[327671675,1716302715950,1424.66582838,0.00013973,2]
[327671685,1716302845112,-1424.73589653,0.00017026,2]
[327671686,1716302945457,-2264.73288944,0.00017112,2]
[327671687,1716302945478,-150.0,0.00017112,2]
[327671688,1716302945498,-16114.6524,0.00017113,2]
[327671689,1716302945519,-210.0,0.00018823,2]
[327671690,1716302945544,-475.97,0.00019726,2]
[327671691,1716302945565,-17613.89,0.00019726,2]
[327671692,1716302945586,-9703.49893452,0.0001989,2]
[327671693,1716302946127,-17562.72339152,0.0001989,2]
[327671694,1716302946149,-8825.84260848,0.000199,3]
[327671695,1716302952112,-885.98741833,0.000199,3]
[327671696,1716302952143,-14022.0086529,0.000199,3]
[327671697,1716302957128,-2958.354227,0.000198,2]
[327671698,1716302957150,-38752.86416902,0.000199,3]
[327671699,1716302957172,-765.67253248,0.0002,4]
[327671700,1716302957196,-923.41,0.0002239,2]
[327671701,1716302957217,-150.0,0.00023973,2]
[327671702,1716302957238,-4167.94210505,0.00024,3]
[327671703,1716302957262,-1900.77,0.00024169,2]
[327671704,1716302957282,-175.98,0.00024279,2]
[327671705,1716302957303,-250.0,0.00024507,2]
[327671706,1716302957327,-923.41,0.00024654,2]
[327671707,1716302957348,-250.0,0.00024658,2]
[327671708,1716302957372,-243.18,0.00024822,2]
[327671709,1716302957395,-243.18,0.0002489,2]
[327671710,1716302957417,-241.65,0.00024948,3]
[327671711,1716302957445,-243.18,0.00024958,2]
[327671712,1716302957468,-243.18,0.00025026,2]
[327671713,1716302957494,-151.8627915,0.0002509,2]
[327671714,1716302957519,-243.18,0.00025094,2]
[327671715,1716302957544,-243.18,0.00025162,2]
[327671716,1716302957568,-243.18,0.0002523,2]
[327671717,1716302957591,-243.18,0.00025298,2]
[327671718,1716302957614,-243.18,0.00025366,2]
[327671719,1716302957637,-243.18,0.00025435,2]
[327671720,1716302957660,-243.18,0.00025503,2]
[327671721,1716302957685,-243.18,0.00025571,2]
[327671722,1716302957708,-243.18,0.00025639,2]
[327671723,1716302957733,-243.18,0.00025707,2]
[327671724,1716302957763,-243.18,0.00025775,2]
[327671725,1716302957786,-243.18,0.00025843,2]
[327671726,1716302957809,-243.18,0.00025911,2]
[327671727,1716302957833,-243.18,0.00025979,2]
[327671728,1716302957856,-243.18,0.00026047,2]
[327671729,1716302957881,-200.0,0.00026084,2]
[327671730,1716302957907,-250.0,0.00026084,2]
[327671731,1716302957933,-243.18,0.00026115,2]
[327671732,1716302957956,-634.76,0.00026395,2]
[327671733,1716302957981,-255.64,0.00026449,2]
[327671734,1716302958005,-23900.0,0.00026524,2]
[327671735,1716302958031,-7339.57184513,0.00026818,2]
[327671736,1716302958055,-923.41,0.00026918,2]
[327671737,1716302958080,-160.94986062,0.00027088,2]
[327671738,1716302958104,-7339.57184504,0.00027716,2]
[327671739,1716302958127,-7339.57184504,0.00028614,2]
[327671740,1716302958152,-923.41,0.00029182,2]
[327671741,1716302958175,-749.45,0.00029275,2]
[327671742,1716302958201,-233.61877912,0.00029275,2]
[327671745,1716303006511,19331.8153296,0.00017111,2]
[327671750,1716303032426,-766.38122088,0.00029275,2]
[327671752,1716303032436,-177.39,0.00029322,2]
[327671755,1716303032446,-28761.30159845,0.00029432,2]
[327671757,1716303032461,-7339.57184504,0.00029512,2]
[327671758,1716303032470,-11031.6724543,0.0003,3]
[327671760,1716303032480,-183.084,0.0003,4]
[327671761,1716303032491,-7339.57184504,0.0003041,2]
[327671763,1716303032500,-500.0,0.00030573,2]
[327671765,1716303032510,-2264.73288944,0.00031307,4]
[327671766,1716303032520,-7339.57184504,0.00031308,2]
[327671767,1716303032532,-15408.70425674,0.0003143,4]
[327671768,1716303032543,-923.41,0.00031446,2]
[327671769,1716303032552,-155.6,0.00031546,2]
[327671770,1716303032562,-5830.83853022,0.00032,4]
[327671771,1716303032572,-749.45,0.00032014,2]
[327671772,1716303032583,-7339.57184504,0.00032206,2]
[327671773,1716303032592,-160.94986062,0.00032437,7]
[327671774,1716303032602,-167.86,0.00032449,120]
[327671775,1716303032612,-1000.0,0.00032934,2]
[327671776,1716303032621,-186.58348362,0.00032991,7]
[327671777,1716303032631,-227.11,0.00033034,10]
[327671778,1716303032641,-7339.57184504,0.00033104,2]
[327671779,1716303032651,-1506.0,0.000332,2]
[327671780,1716303032660,-4820.7612,0.000333,2]
[327671781,1716303032670,-8294.8128,0.000333,2]
[327671782,1716303032680,-500.0,0.000334,12]
[327671783,1716303032690,-2310.26513789,0.00033471,2]
[327671784,1716303032700,-4968.66,0.000335,2]
[327671785,1716303032709,-4968.66,0.000335,2]
[327671786,1716303032719,-4968.66,0.000335,2]
[327671787,1716303032729,-4968.66,0.000335,2]
[327671788,1716303032741,-4968.66,0.000335,2]
[327671789,1716303032750,-4968.66,0.000335,2]
[327671790,1716303032760,-4968.66,0.000335,2]
[327671791,1716303032769,-4968.66,0.000335,2]
[327671792,1716303032779,-4968.66,0.000335,2]
[327671793,1716303032789,-4968.66,0.000335,2]
[327671794,1716303032798,-4968.66,0.000335,2]
[327671795,1716303032808,-4968.66,0.000335,2]
[327671796,1716303032817,-4968.66,0.000335,2]
[327671797,1716303032827,-4968.66,0.000335,2]
[327671798,1716303032836,-4968.66,0.000335,2]
[327671799,1716303032845,-4968.66,0.000335,2]
[327671800,1716303032854,-4968.66,0.000335,2]
[327671802,1716303032864,-4968.66,0.000335,2]
[327671804,1716303032873,-4968.66,0.000335,2]
[327671806,1716303032882,-4968.66,0.000335,2]
[327671808,1716303032892,-1100.0,0.000335,12]
[327671809,1716303032901,-153.28,0.000335,2]
[327671812,1716303032910,-153.28,0.000335,2]
[327671815,1716303032919,-153.28,0.000335,2]
[327671819,1716303032929,-153.28,0.000335,2]
[327671822,1716303032939,-153.28,0.000335,2]
[327671824,1716303032948,-153.28,0.000335,2]
[327671826,1716303032957,-153.28,0.000335,2]
[327671828,1716303032967,-153.28,0.000335,2]
[327671830,1716303032976,-153.28,0.000335,2]
[327671832,1716303032987,-153.28,0.000335,2]
[327671833,1716303032996,-153.28,0.000335,2]
[327671834,1716303033006,-153.28,0.000335,2]
[327671835,1716303033015,-153.28,0.000335,2]
[327671836,1716303033025,-153.28,0.000335,2]
[327671837,1716303033035,-153.28,0.000335,2]
[327671838,1716303033044,-1600.0,0.000336,12]
[327671839,1716303033054,-2200.0,0.000337,12]
[327671840,1716303033063,-923.41,0.0003371,2]
[327671841,1716303033073,-2700.0,0.000338,12]
[327671842,1716303033082,-4885.37912554,0.000338,2]
[327671843,1716303033091,-196.46248303,0.000338,2]
[327671844,1716303033101,-726.5881846,0.000338,2]
[327671845,1716303033111,-198.88015173,0.0003387,2]
[327671846,1716303033120,-396.5757025,0.00033879,7]
[327671847,1716303033130,-284.23133795,0.00033879,7]
[327671848,1716303033139,-838.24,0.00033879,120]
[327671849,1716303033148,-838.24,0.00033879,120]
[327671850,1716303033158,-838.24,0.00033879,120]
[327671851,1716303033167,-838.24,0.00033879,120]
[327671852,1716303033177,-838.24,0.00033879,120]
[327671853,1716303033186,-838.24,0.00033879,120]
[327671854,1716303033196,-838.24,0.00033879,120]
[327671855,1716303033207,-838.24,0.00033879,120]
[327671856,1716303033216,-838.24,0.00033879,120]
[327671857,1716303033225,-838.24,0.00033879,120]
[327671858,1716303033240,-838.24,0.00033879,120]
[327671859,1716303033250,-838.24,0.00033879,120]
[327671860,1716303033259,-838.24,0.00033879,120]
[327671861,1716303033268,-838.24,0.00033879,120]
[327671862,1716303033278,-838.24,0.00033879,120]
[327671863,1716303033287,-838.24,0.00033879,120]
[327671864,1716303033297,-838.24,0.00033879,120]
[327671865,1716303033306,-838.24,0.00033879,120]
[327671866,1716303033316,-838.24,0.00033879,120]
[327671867,1716303033326,-838.24,0.00033879,120]
[327671868,1716303033335,-838.24,0.00033879,120]
[327671869,1716303033345,-838.24,0.00033879,120]
[327671870,1716303033354,-838.24,0.00033879,120]
[327671871,1716303033364,-838.44002283,0.00033879,120]
[327671872,1716303033374,-98210.99608107,0.0003388,14]
[327671873,1716303033387,-32474.4650067,0.0003388,14]
[327671874,1716303033399,-1059.20919,0.0003388,14]
[327671875,1716303033409,-295.44814184,0.0003388,14]
[327671876,1716303033531,-56012.24398187,0.0003388,14]
[327671877,1716303033544,-5950.0,0.0003388,14]
[327671878,1716303033556,-756.03810701,0.0003388,14]
[327671882,1716303038379,-165.28243674,0.0003378,2]
[327671883,1716303038390,-322.03836439,0.000338,2]
[327671884,1716303038400,-2066.13199352,0.0003388,17]
[327671885,1716303038412,-1000.96365953,0.0003388,17]
[327671886,1716303038423,-25187.94272134,0.0003388,17]
[327671887,1716303038435,-6104.93140327,0.0003388,17]
[327671888,1716303038520,-15510.04328305,0.0003388,17]
[327671889,1716303038530,-2391398.94672734,0.0003388,14]
[327671890,1716303038542,-1648.95132,0.0003388,14]
[327671891,1716303038559,-10208.25469051,0.0003388,14]
[327671915,1716303043307,-225.5003258,0.000338,2]
[327671919,1716303043317,-169.96101536,0.00033879,7]
[327671923,1716303043326,-3255751.94005884,0.0003388,14]
[327671932,1716303043340,-3786.88309998,0.0003388,14]
[327671938,1716303043357,-24328.06699103,0.0003388,14]
[327671947,1716303043374,-1952.23769332,0.0003388,14]
[327671954,1716303043391,-1664.916703,0.0003388,14]
[327671958,1716303043404,-34599.97773785,0.0003388,14]
[327671962,1716303043418,-6777.06029633,0.0003388,14]
[327671965,1716303043433,-5929.87877587,0.0003388,14]
[327671969,1716303043449,-6302.49904391,0.0003388,14]
[327671973,1716303043466,-1320.71424722,0.0003388,14]
[327671977,1716303043482,-1706.78095007,0.0003388,14]
[327671981,1716303043501,-549.19649,0.0003388,14]
[327671984,1716303043518,-65905.53620554,0.0003388,14]
[327671989,1716303043534,-271.26559914,0.0003388,14]
[327672016,1716303043799,-1907.7579,0.0003388,14]
[327672018,1716303043814,-1889.08592415,0.0003388,14]
[327672020,1716303043828,-357.00000003,0.0003388,14]
[327672023,1716303043841,-714.19111848,0.0003388,14]
[327672024,1716303043857,-2029.99481886,0.0003388,14]
[327672026,1716303046339,-1585.31302261,0.00033879,4]
[327672028,1716303046351,-40731.71562244,0.0003388,14]
[327672030,1716303046364,-1683.99354549,0.0003388,14]
[327672031,1716303046423,-1409.5,0.0003388,14]
[327672032,1716303046437,-18855.0,0.0003388,14]
[327672035,1716303046879,-388.701351,0.0003388,14]
[327672039,1716303951106,-367.80652252,0.00016272,2]
[327672040,1716304039141,-961.831298,0.00016188,2]
[327672041,1716304039164,-686.40083079,0.0001627,2]
[327672042,1716304039187,-423.50395095,0.00016271,2]
[327672043,1716304039231,-2001.17311596,0.00016271,2]
[327672044,1716304039255,-43315.61540487,0.00016271,2]
[327672045,1716304039278,-812.11931288,0.00016272,2]
[327672046,1716304039301,-87645.20927867,0.00016272,2]
[327672047,1716304053023,406.11577146,0.00014643,2]
[327672048,1716304149117,-1179.9258354,0.0001627,2]
[327672049,1716304149139,-150.0,0.0001627,2]
[327672050,1716304149159,-300.0,0.0001627,2]
[327672051,1716304149183,-25163.1841646,0.00016271,2]
[327672052,1716304162130,-17613.922,0.00016271,2]
[327672053,1716304165172,-518.03235521,0.00016271,2]
[327672054,1716304165202,-516.47591817,0.00016271,2]
[327672055,1716304165233,-74889.62756751,0.00016272,2]
[327672056,1716304165258,-154.00800825,0.00016275,2]
[327672057,1716304165293,-9839.9452,0.00016275,2]
[327672058,1716304165318,-939.36800953,0.00016545,2]
[327672059,1716304165341,-827.50387033,0.00016631,2]
[327672060,1716304165366,-16269.48063733,0.00017244,2]
[327672061,1716304165388,-10812.81894983,0.00017257,2]
[327672062,1716304165410,-1800.19,0.00017257,2]
[327672063,1716304165432,-6830.48,0.00017257,2]
[327672064,1716304165455,-1707.53,0.00017257,6]
[327672065,1716304165478,-150.99,0.00017534,2]
[327672066,1716304165500,-18374.49,0.00017534,2]
[327672067,1716304165523,-420.0,0.00017784,2]
[327672068,1716304165545,-499.99,0.00017808,2]
[327672069,1716304165567,-854.51,0.00017808,2]
[327672070,1716304165590,-30192.777,0.00017808,2]
[327672071,1716304165614,-210.0,0.00017897,2]
[327672072,1716304165642,-739.79,0.00018222,2]
[327672073,1716304165664,-250.0,0.00018632,2]
[327672074,1716304165686,-9999.99,0.00019199,2]
[327672075,1716304165708,-3880.70724069,0.000192,2]
[327672076,1716304165731,-700.01204822,0.00019355,2]
[327672077,1716304167095,-2504.301408,0.00017243,2]
[327672078,1716304173133,-2575.39493699,0.00017243,2]
[327672079,1716304173154,-1147.01795178,0.00019355,2]
[327672080,1716304173172,-587.0,0.00019438,2]
[327672081,1716304173194,-293.0,0.00019687,2]
[327672082,1716304173214,-250.0,0.00019945,2]
[327672083,1716304173234,-200.0,0.00019997,2]
[327672084,1716304173253,-791.65,0.00020068,2]
[327672085,1716304173273,-1000.0,0.00020229,2]
[327672086,1716304173294,-739.79,0.00020486,2]
[327672087,1716304173312,-237.33,0.00020509,2]
[327672088,1716304173332,-1804.91,0.00020797,2]
[327672089,1716304173353,-1852.42,0.00021206,2]
[327672090,1716304173372,-823.0,0.00021247,2]
[327672091,1716304173390,-912.78,0.00021257,2]
[327672092,1716304173411,-2000.0,0.00021375,3]
[327672093,1716304173431,-155.05,0.00021421,2]
[327672094,1716304173451,-23900.0,0.000216,2]
[327672095,1716304203678,150.0,0.00017243,2]
[327672096,1716304203878,150.0,0.00017243,2]
[327672097,1716304204108,42.31875546,0.00017243,2]
[327672098,1716304234292,-107.68124454,0.00017243,2]
[327672101,1716304234302,-151.39994816,0.00017243,2]
[327672103,1716304234311,-206.16132616,0.00022658,2]
[327672106,1716304234320,-739.79,0.0002275,2]
[327672109,1716304234329,-450.46091596,0.00022758,2]
[327672113,1716304234342,-549.53908404,0.00022758,2]
[327672116,1716304234351,-153.79091596,0.00022808,2]
[327672117,1716304234362,-637.85908404,0.00022808,2]
[327672118,1716304234371,-63.02672596,0.0002308,2]
[327672120,1716304234722,-112.56327404,0.0002308,2]
[327672121,1716304234732,-1179.9258354,0.00024657,2]
[327672122,1716304234741,-250.0,0.00024658,2]
[327672123,1716304234751,-206.16132616,0.00024798,2]
[327672124,1716304234761,-167.61,0.00024847,2]
[327672125,1716304234773,-14905.78475667,0.00024898,2]
[327672126,1716304234783,-14905.78475662,0.00024898,2]
[327672127,1716304234794,-14905.78475662,0.00024898,2]
[327672128,1716304234803,-14905.78475662,0.00024898,2]
[327672129,1716304234813,-739.79,0.00025014,2]
[327672130,1716304234823,-14905.78475662,0.00025265,2]
[327672131,1716304234834,-1000.0,0.00025286,2]
[327672132,1716304234849,-490.37703694,0.0002541,2]
[327672133,1716304234858,-23900.0,0.0002544,2]
[327672134,1716304234868,-791.65,0.00025548,2]
[327672135,1716304234879,-5079.69634499,0.00025768,2]
[327672136,1716304234888,-150.27,0.0002589,2]
[327672137,1716304234898,-201.37,0.00026073,3]
[327672138,1716304234908,-604.14,0.00026073,3]
[327672139,1716304234920,-206.344491,0.00026081,2]
[327672140,1716304234932,-3880.70724069,0.00026081,2]
[327672141,1716304234942,-1880.92941833,0.00026082,2]
[327672142,1716304234952,-96014.700033,0.00026083,2]
[327672143,1716304234965,-845.0442,0.00026083,2]
[327672144,1716304234977,-845.39999995,0.00026083,2]
[327672145,1716304234989,-63279.1744889,0.00026083,2]
[327672146,1716304235001,-4486.04714854,0.00026083,2]
[327672147,1716304235011,-154.49321243,0.00026593,2]
[327672148,1716304235021,-739.79,0.00027278,2]
[327672149,1716304235031,-14905.78475662,0.00027292,2]
[327672150,1716304235040,-151.1162498,0.00027297,2]
[327672151,1716304235050,-2887.58,0.00027397,2]
[327672152,1716304235060,-943.47,0.00027397,2]
[327672153,1716304235069,-402.74,0.00027443,3]
[327672154,1716304235079,-1000.0,0.00027815,2]
[327672155,1716304235088,-2272.91905717,0.000286,2]
[327672156,1716304235098,-237.33,0.00028713,2]
[327672157,1716304235108,-14905.78475662,0.00029319,2]
[327672158,1716304235118,-739.79,0.00029542,2]
[327672159,1716304235127,-166.66666667,0.00029662,2]
[327672160,1716304235137,-285.99276007,0.0003,30]